bitfinex/quotes_ETHUSD_20250507
["timestamp","ask_amount","ask_price","bid_price","bid_amount"]
[1746643574292,5.60722139,1804.7,1804.3,5.54216892]
[1746643574490,0.066,1804.7,1804.3,5.54221732]
[1746643574734,5.60731388,1804.7,1804.2,3.0]
[1746643575030,12.01962044,1804.9,1804.4,5.54184051]
[1746643575240,12.01962044,1804.9,1804.5,5.54151736]
[1746643575406,6.479,1804.9,1804.6,5.5412021]
[1746643575608,12.01952203,1804.9,1804.6,5.5412021]
[1746643576332,0.066,1804.5,1804.0,0.817]
[1746643576520,5.54248201,1804.3,1803.9,5.54353892]
[1746643576719,0.23270188,1804.2,1803.9,5.54334538]
[1746643577096,5.7755072,1804.2,1803.8,5.54368403]
[1746643577304,0.23270188,1804.2,1803.9,5.54351823]
[1746643577509,5.77533012,1804.2,1803.9,5.54351823]
[1746643577711,0.23270188,1804.2,1803.9,5.54351823]
[1746643578698,5.54302349,1804.1,1803.7,6.79510227]
[1746643578906,0.23084185,1804.0,1803.7,12.33903509]
[1746643579205,0.23084185,1804.0,1803.9,5.54354454]
[1746643579517,5.54246632,1804.3,1803.9,5.54354454]
[1746643579724,5.77356125,1804.2,1803.8,5.54385186]
[1746643579927,5.54293277,1804.1,1803.8,5.54385186]
[1746643580244,0.23084185,1804.0,1803.7,6.79499545]
[1746643580447,0.23084185,1804.0,1803.8,5.54383896]
[1746643580616,0.23084185,1804.0,1803.7,6.79497656]
[1746643580799,0.23084185,1804.0,1803.9,5.54354454]
[1746643581122,0.23084185,1804.0,1803.9,5.54344336]
[1746643581323,0.066,1804.3,1803.7,6.79517584]
[1746643581502,5.54306616,1804.1,1803.7,6.79517584]
[1746643581696,0.23084185,1804.0,1803.7,1.2510257]
[1746643581901,5.54273247,1804.2,1803.8,5.54370456]
[1746643582138,0.23088032,1804.1,1803.8,5.54370456]
[1746643582338,0.066,1804.3,1803.9,5.54341283]
[1746643582550,0.23091355,1804.2,1804.0,5.54304347]
[1746643583056,5.77357754,1804.2,1803.9,3.0]
[1746643583347,0.22982288,1804.1,1803.9,3.0]
[1746643583499,5.54303827,1804.1,1803.7,6.79508676]
[1746643583706,0.22767178,1804.0,1803.8,5.5438094]
[1746643583904,5.54327069,1804.0,1803.7,4.2510257]
[1746643584101,0.22765426,1803.9,1803.7,9.79516985]
[1746643584319,0.22765426,1803.9,1803.7,6.79516985]
[1746643584726,5.54375223,1803.9,1803.7,0.4340257]
[1746643584932,5.83742047,1803.8,1803.7,0.4340257]
[1746643586037,5.77142047,1803.8,1803.7,0.4340257]
[1746643586337,0.22756861,1803.8,1803.7,0.4340257]
[1746643586554,5.54369107,1803.9,1803.7,0.4340257]
[1746643586757,6.547,1804.4,1803.7,1.2104257]
[1746643586957,5.16960124,1804.9,1803.7,1.2104257]
[1746643586958,0.066,1804.8,1804.2,0.7764]
[1746643587147,0.066,1804.8,1804.3,0.0554215]
[1746643587148,5.60695481,1804.8,1804.3,0.0554215]
[1746643587348,5.60695481,1804.8,1804.3,0.38318215]
[1746643587349,5.54079873,1804.8,1804.3,0.38318215]
[1746643587547,5.54131008,1804.7,1804.3,5.5421007]
[1746643587752,5.54091379,1804.8,1804.3,5.5421007]
[1746643588057,6.481,1804.9,1804.3,5.54217469]
[1746643588058,5.54121727,1804.7,1804.3,5.54217469]
[1746643588225,5.54138033,1804.7,1804.3,5.54217469]
[1746643588426,5.54151021,1804.6,1804.2,6.31886769]
[1746643588965,5.54150766,1804.6,1804.2,6.3188173]
[1746643589169,5.60720002,1804.7,1804.3,5.54223584]
[1746643589352,5.54142371,1804.6,1804.2,6.31871608]
[1746643589657,11.14847869,1804.7,1804.2,0.7764]
[1746643589837,5.54145705,1804.6,1804.2,9.31888041]
[1746643590238,5.54145705,1804.6,1804.2,9.31885317]
[1746643590554,5.60711006,1804.7,1804.3,5.54230556]
[1746643590555,5.6072305,1804.7,1804.3,5.54230556]
[1746643590749,5.54142213,1804.6,1804.3,5.54230556]
[1746643590950,5.54216887,1804.4,1804.0,3.7636]
[1746643591151,0.20140363,1804.3,1804.0,3.7636]
[1746643591329,5.54211504,1804.4,1804.0,9.30667262]
[1746643591539,0.20143505,1804.3,1804.0,9.30667262]
[1746643591866,5.54191341,1804.5,1804.1,5.54286967]
[1746643592070,0.20140707,1804.2,1804.1,5.54271096]
[1746643592271,5.54171927,1804.5,1804.1,11.08542192]
[1746643592470,0.20511604,1804.2,1804.1,5.54271096]
[1746643592638,5.54139421,1804.6,1804.0,0.7636]
[1746643592832,0.20506366,1804.2,1804.0,0.7636]
[1746643593160,0.20487926,1804.1,1803.7,2.5140257]
[1746643593358,5.54376118,1803.9,1803.7,2.5140257]
[1746643593558,5.74744727,1803.8,1803.7,0.4340257]
[1746643594283,0.20359541,1803.8,1803.7,0.4340257]
[1746643594475,5.74744727,1803.8,1803.7,0.4340257]
[1746643595573,0.20359541,1803.8,1803.7,0.4340257]
[1746643596075,5.74744727,1803.8,1803.7,0.4340257]
[1746643596373,5.81383622,1803.8,1803.7,0.4340257]
[1746643597153,5.74783622,1803.8,1803.7,0.4340257]
[1746643597674,12.28483622,1803.8,1803.7,0.4340257]
[1746643599290,12.83483622,1803.8,1803.7,0.4340257]
[1746643599747,15.83483622,1803.8,1803.7,0.4340257]
[1746643600148,5.5472347,1802.7,1802.6,3.71847393]
[1746643600349,5.74847011,1802.7,1802.6,3.71847393]
[1746643602414,0.20123541,1802.7,1802.6,3.71847393]
[1746643602599,5.74847011,1802.7,1802.6,3.71847393]
[1746643602801,5.5472347,1802.7,1802.6,3.71847393]
[1746643603002,5.74465857,1802.7,1802.6,3.71847393]
[1746643604986,5.74465857,1802.7,1802.3,5.54835778]
[1746643604987,5.74465857,1802.7,1802.3,5.54843855]
[1746643605325,0.19742387,1802.7,1802.4,0.7559]
[1746643605489,0.19742387,1802.7,1802.4,6.3038179]
[1746643605695,12.01870212,1802.9,1802.4,6.3038179]
[1746643606003,5.54708411,1802.8,1802.4,6.30393978]
[1746643606209,5.54746685,1802.7,1802.4,0.2559]
[1746643606512,5.54782258,1802.6,1802.2,5.54869064]
[1746643606712,5.54786586,1802.5,1802.1,7.62889613]
[1746643606905,5.54786586,1802.5,1802.1,7.62886039]
[1746643607109,5.54702013,1802.8,1802.1,5.08]
[1746643607110,5.73762517,1802.4,1802.1,5.08]
[1746643607295,0.18946032,1802.4,1802.2,5.54875484]
[1746643607627,5.54795986,1802.5,1802.1,7.62892161]
[1746643607832,0.18937719,1802.3,1802.1,2.08]
[1746643608010,5.54816478,1802.4,1802.1,2.08]
[1746643608332,0.18934914,1802.2,1801.9,0.4340257]
[1746643608510,5.54865002,1802.3,1801.9,5.98353307]
[1746643608825,0.18934914,1802.2,1801.9,5.98353307]
[1746643608978,0.18934914,1802.2,1801.9,0.4340257]
[1746643609296,0.18934914,1802.2,1801.9,6.78804665]
[1746643609691,0.18934914,1802.2,1802.0,5.54937025]
[1746643610085,6.0480043,1802.5,1802.1,5.54906805]
[1746643610285,0.18933411,1802.1,1802.0,5.54937025]
[1746643610514,6.04804468,1802.5,1802.0,5.54915137]
[1746643610828,5.73766804,1802.4,1801.9,1.2385257]
[1746643611035,5.73766804,1802.4,1802.0,5.54928535]
[1746643611330,0.18938151,1802.4,1802.1,5.54888341]
[1746643611524,5.73781988,1802.4,1802.0,5.54928207]
[1746643611726,5.54880056,1802.2,1801.9,4.2385257]
[1746643611932,5.54857913,1802.3,1801.9,9.78805997]
[1746643612435,5.73821405,1802.2,1801.9,1.2385257]
[1746643612724,11.28723391,1802.2,1801.9,1.2385257]
[1746643612924,5.5492042,1802.1,1801.9,0.4340257]
[1746643613122,5.54938956,1802.0,1801.9,0.4340257]
[1746643613420,6.23865887,1802.0,1801.9,0.4340257]
[1746643616646,6.73865887,1802.0,1801.9,0.4340257]
[1746643618975,6.23865887,1802.0,1801.9,0.4340257]
[1746643620847,6.73865887,1802.0,1801.9,0.4340257]
[1746643621251,6.23865887,1802.0,1801.9,0.4340257]
[1746643622903,9.78865887,1802.0,1801.9,0.4340257]
[1746643623792,14.58461184,1802.0,1801.9,0.4340257]
[1746643623948,9.78865887,1802.0,1801.9,0.4340257]
[1746643624154,9.23865887,1802.0,1801.9,0.4340257]
[1746643624385,6.23865887,1802.0,1801.9,0.4340257]
[1746643624953,0.68926931,1802.0,1801.9,0.4340257]
[1746643625193,5.68551581,1802.0,1801.9,0.4340257]
[1746643625394,0.13612625,1802.0,1801.9,0.4340257]
[1746643625799,0.13612625,1802.0,1801.9,1.03241033]
[1746643626013,5.54800304,1802.5,1802.1,0.7976]
[1746643626157,5.54861345,1802.3,1802.1,0.7976]
[1746643626954,0.5,1802.4,1802.1,0.7976]
[1746643627663,5.54901005,1802.2,1801.9,4.2485257]
[1746643627866,6.04836011,1802.4,1801.9,4.2485257]
[1746643628060,5.54908218,1802.1,1801.9,1.2485257]
[1746643628291,5.54938956,1802.0,1801.9,1.2485257]
[1746643628805,5.54938956,1802.0,1801.9,0.4340257]
[1746643630486,6.04938956,1802.0,1801.9,0.4340257]
[1746643631072,6.59938956,1802.0,1801.9,0.4340257]
[1746643631277,14.39534253,1802.0,1801.9,0.4340257]
[1746643634086,14.67105952,1802.0,1801.9,0.4340257]
[1746643634289,5.55251566,1801.0,1800.5,4.47617393]
[1746643634495,6.473,1800.9,1800.5,4.47617393]
[1746643634683,5.55330799,1800.8,1800.5,4.92379132]
[1746643634887,12.02595011,1800.9,1800.5,6.75930372]
[1746643635225,6.473,1800.9,1800.6,4.79595297]
[1746643635378,5.55233417,1801.1,1800.7,6.33436842]
[1746643635725,5.55233417,1801.1,1800.7,6.33438376]
[1746643635726,5.55240541,1801.1,1800.7,6.33438376]
[1746643636219,5.55298329,1800.9,1800.7,0.7811]
[1746643636579,0.10439435,1800.8,1800.7,0.7811]
[1746643636784,5.55298329,1800.9,1800.7,0.7811]
[1746643636985,0.10439435,1800.8,1800.7,0.7811]
[1746643637494,5.5529326,1800.9,1800.5,6.31907623]
[1746643637698,0.10439435,1800.8,1800.5,6.31890791]
[1746643637885,0.10439435,1800.8,1800.6,5.5536187]
[1746643638090,5.5526438,1801.0,1800.6,5.5536187]
[1746643638314,0.10436626,1800.7,1800.5,6.31893445]
[1746643638509,5.55311055,1800.8,1800.5,6.31893445]
[1746643638711,5.55311055,1800.8,1800.5,0.7651]
[1746643638918,5.55295735,1800.9,1800.5,6.31894384]
[1746643638919,0.10427166,1800.7,1800.5,6.31894384]
[1746643639137,0.10427166,1800.7,1800.5,0.7651]
[1746643639336,5.5535451,1800.7,1800.5,0.7651]
[1746643639510,0.10418574,1800.6,1800.5,0.7651]
[1746643639924,5.55333152,1800.8,1800.5,0.7651]
[1746643639925,5.55342695,1800.7,1800.5,0.7651]
[1746643640236,0.10418574,1800.6,1800.5,0.7651]
[1746643640600,5.55294011,1800.9,1800.5,6.31911277]
[1746643640802,5.65734875,1800.8,1800.5,0.7651]
[1746643641337,0.10419985,1800.8,1800.5,6.31911197]
[1746643641543,0.5,1800.7,1800.6,5.55366897]
[1746643641902,0.5,1800.7,1800.6,14.22135638]
[1746643641903,0.10410339,1800.7,1800.6,14.22135638]
[1746643642205,5.54954046,1802.0,1801.6,5.55048167]
[1746643642405,6.04920399,1802.1,1801.7,5.5503055]
[1746643642406,12.52413288,1802.1,1801.7,5.5503055]
[1746643642711,6.475,1802.1,1801.9,5.54945095]
[1746643642913,6.475,1802.5,1802.1,6.3525987]
[1746643643113,12.02296984,1802.5,1802.1,6.3525987]
[1746643643324,5.54757913,1802.6,1802.2,5.54855186]
[1746643643531,12.02190548,1802.9,1802.5,5.54781834]
[1746643643702,6.475,1802.9,1802.5,5.54774055]
[1746643643901,5.54728357,1802.7,1802.3,3.0]
[1746643644138,12.02177876,1802.9,1802.4,5.54789378]
[1746643644343,6.475,1802.9,1802.6,5.54740539]
[1746643644562,3.69862982,1803.1,1802.6,3.0]
[1746643644703,10.34038835,1803.1,1802.6,8.54737693]
[1746643644903,10.34038835,1803.1,1802.5,11.53401897]
[1746643644904,4.79417154,1803.1,1802.5,3.7968]
[1746643645130,10.34037056,1803.1,1802.6,8.54732422]
[1746643645367,4.79417154,1803.1,1802.9,5.54646637]
[1746643645649,4.79417154,1803.1,1802.7,5.54703732]
[1746643645809,4.79417154,1803.1,1802.7,5.54704917]
[1746643646139,4.79417154,1803.1,1802.8,5.54665013]
[1746643646437,4.79417154,1803.1,1803.0,0.7957]
[1746643647942,5.29417154,1803.1,1803.0,0.7957]
[1746643648266,10.84017564,1803.1,1803.0,0.7957]
[1746643648474,6.0460041,1803.1,1802.7,3.0]
[1746643648655,5.5463117,1803.0,1802.6,0.8041]
[1746643648833,5.54801038,1802.5,1802.3,0.7638]
[1746643649028,5.54815108,1802.5,1802.3,0.7638]
[1746643649232,5.54847775,1802.3,1801.9,6.37245658]
[1746643649652,0.11911664,1802.2,1801.9,6.37245658]
[1746643650273,0.11911664,1802.2,1801.9,9.42794005]
[1746643650468,0.11911664,1802.2,1802.0,5.54924064]
[1746643650671,5.54756896,1802.6,1801.9,3.8229]
[1746643650876,0.11670372,1802.1,1801.9,6.37251208]
[1746643651044,6.472,1802.4,1801.9,0.8229]
[1746643651245,0.11599361,1802.0,1801.9,0.8229]
[1746643651573,0.11599361,1802.0,1801.8,3.71847393]
[1746643651574,5.54969754,1801.9,1801.8,3.71847393]
[1746643651798,5.66556602,1801.9,1801.8,3.71847393]
[1746643651957,12.13656602,1801.9,1801.8,3.71847393]
[1746643652291,12.13656602,1801.9,1801.3,4.70709501]
[1746643652292,6.58686848,1801.9,1801.3,5.55129848]
[1746643652495,5.55012347,1801.8,1801.4,5.60662977]
[1746643652794,0.11415122,1801.7,1801.4,5.60662977]
[1746643652955,0.11415122,1801.7,1801.4,0.05550826]
[1746643653155,5.55075255,1801.6,1801.3,1.15432242]
[1746643653382,0.11406888,1801.5,1801.2,5.9919257]
[1746643653579,5.55138036,1801.4,1801.2,0.8024]
[1746643653795,0.11401802,1801.3,1801.2,0.8024]
[1746643654296,5.55108874,1801.5,1801.1,5.55213818]
[1746643654480,5.55108874,1801.5,1801.0,3.77399166]
[1746643654481,0.11174514,1801.3,1801.0,3.77399166]
[1746643654682,6.05004688,1801.8,1801.0,3.71847393]
[1746643654683,5.55068322,1801.6,1801.0,3.71847393]
[1746643654884,0.11164356,1801.2,1801.0,3.71847393]
[1746643655071,5.55216256,1801.1,1801.0,3.71847393]
[1746643655486,5.66287574,1801.1,1801.0,3.71847393]
[1746643655690,5.55339383,1800.8,1800.3,10.34901605]
[1746643655901,5.55375918,1800.6,1800.3,6.38488714]
[1746643656113,11.10771949,1800.6,1800.3,4.79450624]
[1746643656322,5.55380787,1800.6,1800.3,4.79450624]
[1746643656485,0.1080159,1800.5,1800.3,4.79450624]
[1746643657102,5.55432126,1800.4,1800.3,4.00940624]
[1746643657305,5.55396296,1800.6,1800.3,4.00940624]
[1746643657617,11.10830296,1800.5,1800.3,4.00940624]
[1746643657816,5.55401714,1800.5,1800.3,4.00940624]
[1746643658116,5.55432126,1800.4,1800.3,4.00940624]
[1746643658313,5.55418986,1800.5,1800.3,4.00940624]
[1746643659020,5.55331058,1800.8,1800.3,9.96469964]
[1746643659177,12.02097273,1800.9,1800.4,0.7977]
[1746643659517,0.5,1800.7,1800.4,0.7977]
[1746643659701,0.5,1800.7,1800.6,5.55370432]
[1746643659907,0.5,1800.7,1800.6,13.79876164]
[1746643660103,0.5,1800.7,1800.6,15.67848472]
[1746643660419,5.55199395,1801.2,1800.6,15.67848472]
[1746643660420,5.55197341,1801.2,1800.8,5.55288248]
[1746643660617,5.5517386,1801.3,1800.9,5.55276473]
[1746643660918,5.55181102,1801.3,1800.6,10.1247804]
[1746643661117,5.55181102,1801.3,1800.9,5.55266053]
[1746643661307,11.10362294,1801.3,1800.9,5.55266053]
[1746643661501,5.55200299,1801.2,1800.6,10.1247804]
[1746643661709,5.55200299,1801.2,1800.8,5.55294324]
[1746643661894,5.55200299,1801.2,1800.8,11.10576324]
[1746643662089,5.55200299,1801.2,1800.8,5.55288005]
[1746643662295,5.55169892,1801.3,1800.9,6.34966089]
[1746643662691,6.469,1801.5,1800.9,6.34974478]
[1746643662989,6.469,1801.5,1801.2,5.5517207]
[1746643663201,12.01993051,1801.5,1801.1,5.55201451]
[1746643663377,5.55145387,1801.4,1801.0,5.55233565]
[1746643663578,6.469,1801.5,1801.1,5.55197893]
[1746643663786,5.55127669,1801.4,1801.0,5.55222953]
[1746643663985,5.55159399,1801.3,1801.0,7.32486295]
[1746643664226,6.469,1801.5,1800.9,1.43197448]
[1746643664409,5.5518876,1801.2,1800.9,0.797]
[1746643664585,5.55234137,1801.1,1800.7,9.38418535]
[1746643664779,5.55185431,1801.2,1800.7,3.8309]
[1746643665032,5.55188632,1801.2,1800.8,5.55287863]
[1746643665234,6.05161228,1801.3,1800.7,0.8309]
[1746643665397,6.05161228,1801.3,1800.5,0.7734]
[1746643665721,5.55288909,1800.9,1800.5,6.3271913]
[1746643666237,0.5,1801.3,1800.6,3.05553476]
[1746643666414,5.55165448,1801.3,1800.6,8.60917618]
[1746643666726,5.55138534,1801.4,1801.0,6.38075741]
[1746643667036,12.02004775,1801.5,1801.2,5.55166442]
[1746643667037,6.469,1801.5,1801.2,5.55166442]
[1746643667185,26.0447777,1801.9,1801.4,5.55111089]
[1746643667186,5.55019989,1801.8,1801.4,5.55111089]
[1746643667386,5.55019989,1801.8,1801.4,5.55104373]
[1746643667827,5.55032787,1801.7,1801.1,5.1895257]
[1746643667980,5.55053106,1801.7,1801.3,5.55150631]
[1746643668482,5.5515461,1801.3,1801.0,0.8284]
[1746643668692,5.55195397,1801.2,1801.0,0.8284]
[1746643669127,5.5517252,1801.3,1801.0,0.8284]
[1746643669416,5.55186233,1801.2,1801.0,0.8284]
[1746643669614,6.471,1801.4,1800.8,6.3088871]
[1746643669615,5.55175233,1801.3,1800.8,6.3088871]
[1746643669984,5.55188492,1801.2,1800.8,6.3088871]
[1746643670440,5.55175233,1801.3,1800.8,7.49496523]
[1746643670646,12.02244592,1801.4,1801.0,5.55231617]
[1746643671013,6.471,1801.4,1800.8,7.49505214]
[1746643671228,5.55196261,1801.2,1800.8,6.30882177]
[1746643671428,12.02237274,1801.4,1800.9,5.55266153]
[1746643671640,12.02237274,1801.4,1800.9,5.55261143]
[1746643671848,5.55166567,1801.3,1800.9,5.55261143]
[1746643672145,5.55163971,1801.3,1800.8,6.308822]
[1746643672343,6.471,1801.4,1801.0,5.55225932]
[1746643672641,6.471,1801.4,1801.2,5.55181761]
[1746643673106,6.471,1801.4,1801.1,5.55198275]
[1746643673305,6.471,1801.4,1801.1,5.55196184]
[1746643673535,6.471,1801.4,1801.2,5.55185007]
[1746643673841,5.55042623,1801.7,1801.3,5.55136298]
[1746643674651,0.5,1801.6,1801.3,5.55136298]
[1746643674944,0.5,1801.6,1801.4,5.55106464]
[1746643675243,0.5,1801.6,1801.4,5.55101433]
[1746643675421,0.5,1801.6,1801.4,6.66125332]
[1746643676057,0.5,1801.6,1801.5,5.55092978]
[1746643676205,6.471,1801.8,1801.6,5.55031847]
[1746643676402,5.54956496,1802.0,1801.6,5.55031847]
[1746643676602,5.54956496,1802.0,1801.6,5.55052361]
[1746643676847,6.471,1802.2,1801.5,0.8195]
[1746643677149,6.471,1802.2,1801.8,5.54981253]
[1746643677354,12.01993803,1802.2,1801.8,5.54981253]
[1746643677650,6.471,1802.2,1801.9,5.54963909]
[1746643678754,6.471,1802.2,1801.9,0.7694]
[1746643679048,5.54887317,1802.2,1801.9,0.7694]
[1746643679251,5.54832426,1802.4,1801.9,0.7694]
[1746643679456,5.54797079,1802.5,1801.9,0.82489228]
[1746643679751,0.5,1802.2,1802.0,5.5491778]
[1746643679914,0.5,1802.2,1802.0,6.73598942]
[1746643680116,5.54838805,1802.4,1802.0,6.73598942]
[1746643680355,5.54793043,1802.5,1801.9,0.7694]
[1746643680520,5.54938956,1802.0,1801.7,0.8233]
[1746643680712,5.54976439,1801.9,1801.7,0.8233]
[1746643680918,5.54938956,1802.0,1801.5,5.55091256]
[1746643681142,5.55092978,1801.5,1801.2,0.78]
[1746643681551,5.55137088,1801.4,1801.2,0.78]
[1746643681745,5.5515461,1801.3,1801.0,6.33230277]
[1746643681951,5.55138236,1801.4,1801.1,5.55213905]
[1746643682138,11.10232301,1801.5,1801.1,5.55213905]
[1746643682333,5.55124634,1801.4,1801.1,5.55213905]
[1746643682538,5.55111217,1801.5,1801.1,5.5520755]
[1746643682740,5.55077748,1801.6,1801.2,5.55169692]
[1746643682953,5.55077748,1801.6,1801.1,5.55198064]
[1746643683156,5.55077748,1801.6,1801.3,5.55153247]
[1746643683339,0.5,1802.0,1801.2,6.10682003]
[1746643683340,0.5,1802.0,1801.2,0.55519806]
[1746643683544,5.55033024,1801.7,1801.3,6.3781461]
[1746643683783,5.55104293,1801.5,1801.3,0.8266]
[1746643683941,5.55167019,1801.3,1801.0,0.752]
[1746643684156,5.55062611,1801.6,1801.1,5.55198511]
[1746643684157,5.55109302,1801.5,1801.1,5.55198511]
[1746643684460,5.55131203,1801.4,1801.0,7.00680667]
[1746643684829,0.5,1801.4,1801.2,5.55185158]
[1746643685034,0.5,1801.4,1801.3,5.5515461]
[1746643685257,0.5,1801.4,1801.1,10.74154758]
[1746643685564,11.10231847,1801.5,1801.1,12.51639361]
[1746643685770,5.55112845,1801.5,1801.1,12.51639361]
[1746643685970,5.55078346,1801.6,1801.2,5.55172334]
[1746643686266,5.55124558,1801.4,1801.1,12.51632636]
[1746643686441,5.55112745,1801.5,1801.1,6.96437173]
[1746643686649,5.55112745,1801.5,1801.1,12.51634716]
[1746643687052,5.55079123,1801.6,1801.1,12.51634716]
[1746643687053,5.55080229,1801.6,1801.1,12.51633169]
[1746643687251,5.5510273,1801.5,1801.1,18.06827754]
[1746643687457,5.55080229,1801.6,1801.0,0.752]
[1746643687458,5.55167271,1801.3,1801.0,3.752]
[1746643687657,5.55142856,1801.4,1801.0,6.30432972]
[1746643687854,5.55142856,1801.4,1801.0,11.85659536]
[1746643688166,5.55077395,1801.6,1801.2,5.55166274]
[1746643688370,5.55031359,1801.7,1801.0,9.30432396]
[1746643688573,5.55163173,1801.3,1801.0,0.752]
[1746643688877,5.55133487,1801.4,1801.0,6.30443192]
[1746643689069,11.10284507,1801.4,1801.0,6.30443192]
[1746643689574,11.10284507,1801.4,1800.9,11.10517724]
[1746643689575,5.55173053,1801.3,1800.9,11.10517724]
[1746643689870,6.466,1801.9,1801.1,0.7899]
[1746643690072,5.55044557,1801.7,1801.4,5.5512208]
[1746643690368,6.55000555,1801.8,1801.1,6.94541471]
[1746643690574,5.5511911,1801.5,1801.1,6.9453934]
[1746643690869,11.10241899,1801.5,1801.1,6.9453934]
[1746643691071,5.5507055,1801.6,1801.2,5.55176237]
[1746643691277,5.55041809,1801.7,1801.4,5.55100091]
[1746643691438,6.466,1801.9,1801.4,5.55100091]
[1746643691639,5.55078156,1801.6,1801.2,6.24621328]
[1746643691868,5.55094544,1801.5,1801.2,6.24626881]
[1746643692032,5.55078156,1801.6,1801.2,6.24626881]
[1746643692236,5.55118202,1801.5,1801.2,0.69453934]
[1746643692675,11.10107287,1801.7,1801.3,5.55134409]
[1746643692876,5.55071325,1801.6,1801.2,6.24609247]
[1746643693174,5.55071325,1801.6,1801.3,0.62460925]
[1746643693373,5.55071325,1801.6,1801.3,6.17610446]
[1746643694135,5.55071325,1801.6,1801.3,0.62460925]
[1746643694336,5.55115982,1801.5,1801.1,6.94544428]
[1746643694535,5.55135086,1801.4,1801.1,6.94553862]
[1746643694738,5.5515977,1801.3,1801.1,1.39339456]
[1746643695038,5.55158505,1801.3,1800.6,6.31699666]
[1746643695264,5.55233797,1801.1,1800.7,5.55311356]
[1746643695576,5.55173575,1801.3,1800.8,0.05552511]
[1746643695731,6.467,1801.4,1801.1,0.7634]
[1746643695732,5.55185431,1801.2,1801.1,0.7634]
[1746643695937,0.5,1801.2,1800.9,0.8112]
[1746643696165,12.01827678,1801.4,1800.8,5.60848741]
[1746643696372,5.55227016,1801.1,1800.7,6.36445072]
[1746643696537,5.55174166,1801.3,1800.9,5.55272325]
[1746643696740,5.55174166,1801.3,1801.0,5.55244495]
[1746643696941,5.55199461,1801.2,1800.8,10.74239351]
[1746643697153,5.55199461,1801.2,1800.8,17.4506828]
[1746643697355,5.55199461,1801.2,1800.8,6.34488505]
[1746643697575,5.55199461,1801.2,1800.8,11.89776689]
[1746643697749,5.55168885,1801.3,1800.9,5.55251725]
[1746643697956,6.467,1801.4,1800.8,11.8977604]
[1746643698154,5.55213641,1801.2,1800.8,11.8977604]
[1746643698559,5.55231059,1801.1,1800.8,1.15535935]
[1746643698880,5.55227057,1801.1,1800.8,6.76386223]
[1746643699182,5.55227057,1801.1,1800.7,0.8112]
[1746643699183,5.55259091,1801.0,1800.7,0.8112]
[1746643699355,5.55237988,1801.1,1800.7,6.42011466]
[1746643700083,6.0520264,1801.2,1800.7,6.41992453]
[1746643700451,5.55219771,1801.1,1800.7,6.41992453]
[1746643700657,5.55219771,1801.1,1800.8,5.55308659]
[1746643700860,5.55219771,1801.1,1800.7,6.36439942]
[1746643701079,5.55219771,1801.1,1800.7,8.0751287]
[1746643701287,5.55216496,1801.1,1800.7,2.57747432]
[1746643701459,11.10458831,1801.1,1800.7,8.07519945]
[1746643701660,5.55216496,1801.1,1800.7,8.07519945]
[1746643702002,5.55301367,1800.9,1800.5,6.33059989]
[1746643702305,5.55216256,1801.1,1800.3,6.64858898]
[1746643702306,5.55355799,1800.7,1800.3,6.64858898]
[1746643702952,5.55355799,1800.7,1800.4,5.55424492]
[1746643703198,12.02091129,1800.9,1800.5,11.10757625]
[1746643703490,6.468,1800.9,1800.7,5.5533304]
[1746643703689,6.468,1800.9,1800.7,1.36818647]
[1746643704213,6.468,1800.9,1800.7,6.92156467]
[1746643704358,6.468,1800.9,1800.7,0.8073]
[1746643704560,12.02089804,1800.9,1800.5,6.32602971]
[1746643704792,6.468,1800.9,1800.5,6.32600396]
[1746643704984,5.55317707,1800.8,1800.5,0.7722]
[1746643705293,5.55353039,1800.7,1800.5,0.7722]
[1746643705592,5.55317707,1800.8,1800.5,0.7722]
[1746643705913,6.468,1800.9,1800.6,5.55360829]
[1746643706787,12.02084202,1800.9,1800.5,6.32600343]
[1746643706996,12.02084202,1800.9,1800.5,13.36784156]
[1746643707394,6.468,1800.9,1800.6,5.55350305]
[1746643707691,6.468,1800.9,1800.7,5.55318273]
[1746643707901,6.468,1800.9,1800.8,5.55308751]
[1746643708682,5.55217377,1801.1,1800.8,5.55308751]
[1746643708888,5.55217377,1801.1,1800.7,5.55318273]
[1746643709111,5.55217377,1801.1,1800.8,6.1083088]
[1746643709309,6.05197412,1801.2,1800.8,6.1083088]
[1746643709517,0.5,1801.6,1800.9,6.06565167]
[1746643709816,5.55136067,1801.4,1801.0,5.55229076]
[1746643710021,5.55181276,1801.3,1800.9,0.8206]
[1746643710179,5.55190626,1801.2,1800.9,0.8206]
[1746643710380,0.5,1801.2,1800.7,0.7908]
[1746643710629,6.05187905,1801.2,1800.5,0.7571]
[1746643710921,5.55343319,1800.7,1800.3,11.7920353]
[1746643711219,5.55372231,1800.6,1800.3,1.04803231]
[1746643711373,6.05356927,1800.7,1800.3,4.76650624]
[1746643711574,5.55404636,1800.5,1800.3,4.00940624]
[1746643711977,5.55432126,1800.4,1800.3,4.00940624]
[1746643713179,6.05432126,1800.4,1800.3,4.00940624]
[1746643715292,6.55432126,1800.4,1800.3,4.00940624]
[1746643715831,6.55432126,1800.4,1800.3,0.29093231]
[1746643716135,10.10432126,1800.4,1800.3,0.18182892]
[1746643716281,9.60432126,1800.4,1800.3,0.18182892]
[1746643716612,9.05432126,1800.4,1800.3,0.18182892]
[1746643716819,6.05432126,1800.4,1800.3,0.18182892]
[1746643717205,12.52132126,1800.4,1800.3,0.18182892]
[1746643717725,12.02132126,1800.4,1800.3,0.18182892]
[1746643718696,13.07132126,1800.4,1800.3,0.18182892]
[1746643718891,12.52132126,1800.4,1800.3,0.18182892]
[1746643719359,21.26084696,1800.4,1800.3,0.18182892]
[1746643720379,21.76084696,1800.4,1800.3,0.18182892]
[1746643720786,16.02132126,1800.4,1800.3,0.18182892]
[1746643720991,13.02132126,1800.4,1800.3,0.18182892]
[1746643721407,12.52232126,1800.4,1800.3,0.18182892]
[1746643721618,6.968,1800.4,1800.3,0.18182892]
[1746643721786,6.968,1800.4,1800.3,5.7364587]
[1746643721787,0.5,1800.4,1800.3,5.7364587]
[1746643721995,0.5,1800.4,1800.3,7.09670457]
[1746643722196,5.55385982,1800.6,1800.3,0.18182892]
[1746643722547,12.02124391,1800.8,1800.3,5.73644482]
[1746643722701,12.02124391,1800.8,1800.4,5.55420086]
[1746643722901,12.02124391,1800.8,1800.3,5.73644482]
[1746643723151,5.55380693,1800.6,1800.3,0.18182892]
[1746643723337,5.55362972,1800.7,1800.3,6.31010161]
[1746643723503,5.55362972,1800.7,1800.3,6.30992003]
[1746643723847,5.5533959,1800.7,1800.3,0.18182892]
[1746643724145,11.10787348,1800.6,1800.3,0.18182892]
[1746643724308,5.55402371,1800.5,1800.3,0.18182892]
[1746643724506,5.5539148,1800.6,1800.3,0.18182892]
[1746643724718,5.5543145,1800.5,1800.3,0.18182892]